Workbook

Sheet Sheet1
A1: 附件1：
A2: 景德镇学院2024年度公开选聘高素质人才 专业科目加试成绩及总成绩
A3: 岗位名称 | B3: 岗位代码 | C3: 入围加试人员名单 | D3: 试讲成绩 | F3: 专业实践成绩 | H3: 总成绩 | I3: 备注
D4: 原始成绩 | E4: 折算后成绩50% | F4: 原始成绩 | G4: 折算后成绩50%
A5: 教师岗1 | B5: 2024401001 | C5: 胡坤 | D5: 86.80 | E5: =SUM(D5)*0.5 -> 43.40 | F5: 96.00 | G5: =SUM(F5)*0.5 -> 48.00 | H5: =SUM(E5,G5) -> 91.40
A6: 教师岗1 | B6: 2024401001 | C6: 何璇男 | D6: 88.80 | E6: 44.40 | F6: 90.20 | G6: 45.10 | H6: 89.50
A7: 教师岗1 | B7: 2024401001 | C7: 冯绍鹏 | D7: 83.60 | E7: 41.80 | F7: 53.40 | G7: 26.70 | H7: 68.50
A8: 教师岗1 | B8: 2024401001 | C8: 刘宏飞 | D8: 59.20 | E8: 29.60 | F8: 30.20 | G8: 15.10 | H8: 44.70
A9: 教师岗2 | B9: 2024401002 | C9: 王路标 | D9: 80.00 | E9: 40.00 | F9: 77.60 | G9: 38.80 | H9: 78.80
A10: 教师岗2 | B10: 2024401002 | C10: 何宇豪 | D10: 66.80 | E10: 33.40 | F10: 61.20 | G10: 30.60 | H10: 64.00
A11: 教师岗2 | B11: 2024401002 | C11: 王爱坤 | D11: 77.80 | E11: 38.90 | F11: 31.80 | G11: 15.90 | H11: 54.80
A12: 教师岗2 | B12: 2024401002 | C12: 彭懿 | D12: 0.00 | E12: 0.00 | F12: 0.00 | G12: 0.00 | H12: 0.00 | I12: 缺考
A13: 教师岗3 | B13: 2024401003 | C13: 段桃 | D13: 79.40 | E13: =D13*0.5 -> 39.70 | F13: 69.80 | G13: =F13*0.5 -> 34.90 | H13: =E13+G13 -> 74.60
A14: 教师岗3 | B14: 2024401003 | C14: 滑海涛 | D14: 81.20 | E14: 40.60 | F14: 66.20 | G14: 33.10 | H14: 73.70
A15: 教师岗3 | B15: 2024401003 | C15: 刘俊雄 | D15: 70.00 | E15: 35.00 | F15: 71.00 | G15: 35.50 | H15: 70.50
A16: 教师岗3 | B16: 2024401003 | C16: 杨健飞 | D16: 84.00 | E16: 42.00 | F16: 53.80 | G16: 26.90 | H16: 68.90
A17: 教师岗4 | B17: 2024401004 | C17: 邓昊成 | D17: 82.00 | E17: 41.00 | F17: 62.60 | G17: 31.30 | H17: 72.30
A18: 教师岗4 | B18: 2024401004 | C18: 胡佳雨 | D18: 82.80 | E18: 41.40 | F18: 51.80 | G18: 25.90 | H18: 67.30
A19: 教师岗4 | B19: 2024401004 | C19: 练良珏 | D19: 81.20 | E19: 40.60 | F19: 47.80 | G19: 23.90 | H19: 64.50
A20: 教师岗4 | B20: 2024401004 | C20: 王美艳 | D20: 85.40 | E20: 42.70 | F20: 38.80 | G20: 19.40 | H20: 62.10
A21: 教师岗4 | B21: 2024401004 | C21: 吴玉辉 | D21: 81.00 | E21: 40.50 | F21: 19.00 | G21: 9.50 | H21: 50.00
A22: 教师岗4 | B22: 2024401004 | C22: 张小丽 | D22: 0.00 | E22: 0.00 | F22: 18.40 | G22: 9.20 | H22: 9.20 | I22: 试讲缺考
A23: 教师岗5 | B23: 2024401005 | C23: 汪蕴恒 | D23: 82.60 | E23: =0.5*D23 -> 41.30 | F23: 69.20 | G23: =0.5*F23 -> 34.60 | H23: 75.90
A24: 教师岗5 | B24: 2024401005 | C24: 谢鑫 | D24: 78.00 | E24: =0.5*D24 -> 39.00 | F24: 57.60 | G24: =0.5*F24 -> 28.80 | H24: 67.80
A27: 岗位名称 | B27: 岗位代码 | C27: 入围加试人员名单 | D27: 试讲成绩 | F27: 专业面试成绩 | H27: 总成绩 | I27: 备注
D28: 原始成绩 | E28: 折算后成绩60% | F28: 原始成绩 | G28: 折算后成绩40%
A29: 教师岗6 | B29: 2024401006 | C29: 徐雨涵 | D29: 85.40 | E29: =D29*0.6 -> 51.24 | F29: 86.00 | G29: =F29*0.4 -> 34.40 | H29: =E29+G29 -> 85.64
A30: 教师岗6 | B30: 2024401006 | C30: 周荧 | D30: 82.20 | E30: 49.32 | F30: 83.20 | G30: 33.28 | H30: 82.60
A31: 教师岗6 | B31: 2024401006 | C31: 陈欢 | D31: 76.80 | E31: 46.08 | F31: 82.20 | G31: 32.88 | H31: 78.96
A32: 教师岗6 | B32: 2024401006 | C32: 黄瑞艳 | D32: 75.40 | E32: 45.24 | F32: 74.20 | G32: 29.68 | H32: 74.92
A33: 教师岗6 | B33: 2024401006 | C33: 陈紫薇 | D33: 69.80 | E33: 41.88 | F33: 69.80 | G33: 27.92 | H33: 69.80
A34: 教师岗7 | B34: 2024401007 | C34: 张小圆 | D34: 83.00 | E34: 49.80 | F34: 84.20 | G34: 33.68 | H34: 83.48
A35: 教师岗7 | B35: 2024401007 | C35: 刘书琴 | D35: 80.00 | E35: 48.00 | F35: 81.20 | G35: 32.48 | H35: 80.48
A36: 教师岗7 | B36: 2024401007 | C36: 程锦元 | D36: 77.80 | E36: 46.68 | F36: 82.80 | G36: 33.12 | H36: 79.80
A37: 教师岗7 | B37: 2024401007 | C37: 胡梦婷 | D37: 80.80 | E37: 48.48 | F37: 74.40 | G37: 29.76 | H37: 78.24
A38: 教师岗7 | B38: 2024401007 | C38: 眭明星 | D38: 76.40 | E38: 45.84 | F38: 80.20 | G38: 32.08 | H38: 77.92
A39: 教师岗7 | B39: 2024401007 | C39: 俞柏慧 | D39: 79.20 | E39: 47.52 | F39: 75.80 | G39: 30.32 | H39: 77.84
A40: 教师岗7 | B40: 2024401007 | C40: 霍紫燕 | D40: 77.60 | E40: 46.56 | F40: 75.60 | G40: 30.24 | H40: 76.80
A41: 教师岗7 | B41: 2024401007 | C41: 李昊 | D41: 74.00 | E41: 44.40 | F41: 66.40 | G41: 26.56 | H41: 70.96
A42: 教师岗8 | B42: 2024401008 | C42: 刘丹 | D42: 85.40 | E42: =D42*60% -> 51.24 | F42: 82.80 | G42: =F42*40% -> 33.12 | H42: 84.36
A43: 教师岗8 | B43: 2024401008 | C43: 彭会会 | D43: 81.40 | E43: 48.84 | F43: 80.80 | G43: 32.32 | H43: 81.16
A44: 教师岗8 | B44: 2024401008 | C44: 程洪伟 | D44: 80.00 | E44: 48.00 | F44: 80.60 | G44: 32.24 | H44: 80.24
A45: 教师岗8 | B45: 2024401008 | C45: 郭佳璐 | D45: 79.20 | E45: 47.52 | F45: 81.80 | G45: 32.72 | H45: 80.24
A46: 教师岗8 | B46: 2024401008 | C46: 谢翠玲 | D46: 77.40 | E46: 46.44 | F46: 78.00 | G46: 31.20 | H46: 77.64
A47: 教师岗9 | B47: 2024401009 | C47: 雷鑫 | D47: 78.40 | E47: 47.04 | F47: 80.20 | G47: 32.08 | H47: 79.12
A48: 教师岗9 | B48: 2024401009 | C48: 谢海 | D48: 74.20 | E48: 44.52 | F48: 72.40 | G48: 28.96 | H48: 73.48
A49: 教师岗10 | B49: 2024401010 | C49: 余燕华 | D49: 79.60 | E49: 47.76 | F49: 80.00 | G49: 32.00 | H49: 79.76
